[Event "44th Chess Olympiad Open 2022"]
[Site "Chennai"]
[Date "2022.08.07"]
[Round "9.77"]
[White "Klaas Tokelo"]
[Black "Abdirahman Omar Sheikh"]
[Result "1/2-1/2"]
[WhiteElo "1812"]
[BlackElo "2051"]
[Annotator "NA COMBH"]
[PlyCount "73"]
[EventDate "2022.??.??"]
[TimeControl "60"]

1. Nf3 {[%emt 0:00:29]} d5 {[%emt 0:00:33]} 2. d4 {[%emt 0:01:19]} Nf6 {
[%emt 0:00:32]} 3. g3 {[%emt 0:01:00]} e6 {[%emt 0:04:07]} 4. Bg2 {[%emt 0:00:
00]} c5 {[%emt 0:00:19]} 5. c3 {[%emt 0:01:19]} Nc6 {[%emt 0:00:16]} 6. O-O {
[%emt 0:00:17]} cxd4 {[%emt 0:03:32]} 7. cxd4 {[%emt 0:01:13]} Bd6 {[%emt 0:00:
00]} 8. Nc3 {[%emt 0:00:27]} O-O {[%emt 0:00:14]} 9. Bg5 {[%emt 0:01:03]} Be7 {
[%emt 0:01:53]} 10. Bxf6 {[%emt 0:00:22]} Bxf6 {[%emt 0:00:15]} 11. e3 {
[%emt 0:01:03]} b6 {[%emt 0:00:31]} 12. Qd2 {[%emt 0:02:16]} Ba6 {[%emt 0:00:
00]} 13. Rfc1 {[%emt 0:00:27]} Rc8 {[%emt 0:00:33]} 14. Ne2 {[%emt 0:01:06]}
Qd7 {[%emt 0:01:05]} 15. Rc2 {[%emt 0:01:07]} Na5 {[%emt 0:00:50]} 16. b3 {
[%emt 0:01:30]} Rxc2 {[%emt 0:00:17]} 17. Qxc2 {[%emt 0:00:11]} Rc8 {[%emt 0:
00:00]} 18. Qd2 {[%emt 0:00:42]} g6 {[%emt 0:06:32]} 19. Rc1 {[%emt 0:01:51]}
Rxc1+ {[%emt 0:00:47]} 20. Nxc1 {[%emt 0:00:07]} Qc7 {[%emt 0:04:42]} 21. Nd3 {
[%emt 0:01:43]} Bxd3 {[%emt 0:00:55]} 22. Qxd3 {[%emt 0:00:29]} Qc1+ {[%emt 0:
00:00]} 23. Bf1 {[%emt 0:09:23]} g5 {[%emt 0:06:26]} 24. h3 {[%emt 0:08:20]}
Qb2 {[%emt 0:01:30]} 25. Qa6 {[%emt 0:03:21]} Qc3 {[%emt 0:14:07]} 26. Qxa7 {
[%emt 0:01:45]} Qb4 {[%emt 0:02:12]} 27. Qc7 {[%emt 0:03:54]} Be7 {[%emt 0:00:
00]} 28. Bd3 {[%emt 0:06:34]} h6 {[%emt 0:01:49]} 29. Qb8+ {[%emt 0:08:52]} Kg7
{[%emt 0:00:44]} 30. Ne5 {[%emt 0:06:43]} Bd6 {[%emt 0:12:28]} 31. Qd8 {
[%emt 0:00:43]} Nb7 {[%emt 0:01:17]} 32. Qd7 {[%emt 0:06:15]} Bxe5 {[%emt 0:00:
00]} 33. Qxb7 {[%emt 0:01:01]} Bf6 {[%emt 0:02:06]} 34. Kg2 {[%emt 0:00:59]} h5
{[%emt 0:00:47]} 35. Qc6 {[%emt 0:00:53]} h4 {[%emt 0:01:58]} 36. gxh4 {
[%emt 0:01:22]} gxh4 {[%emt 0:08:44]} 37. Qc2 {[%emt 0:00:49]} 1/2-1/2

[Event "44th Chess Olympiad Open 2022"]
[Site "Chennai"]
[Date "2022.08.07"]
[Round "9.77"]
[White "Bokang, Motsamai"]
[Black "Abdulkadir Mohamed Warsame"]
[Result "0-1"]
[WhiteElo "1433"]
[BlackElo "1820"]
[Annotator "NA"]
[PlyCount "102"]
[EventDate "2022.??.??"]
[TimeControl "60"]

1. d4 {[%emt 0:00:14]} Nf6 {[%emt 0:00:23]} 2. c4 {[%emt 0:00:06]} g6 {[%emt 0:
00:00]} 3. Nc3 {[%emt 0:00:06]} d5 {[%emt 0:00:08]} 4. Nf3 {[%emt 0:00:13]} Bg7
{[%emt 0:00:29]} 5. e3 {[%emt 0:00:13]} O-O {[%emt 0:00:57]} 6. Be2 {[%emt 0:
00:00]} c5 {[%emt 0:01:27]} 7. b3 {[%emt 0:00:32]} cxd4 {[%emt 0:02:40]} 8.
exd4 {[%emt 0:00:14]} Nc6 {[%emt 0:20:39]} 9. Bb2 {[%emt 0:01:56]} Qa5 {
[%emt 0:05:47]} 10. O-O {[%emt 0:01:33]} dxc4 {[%emt 0:01:19]} 11. bxc4 {
[%emt 0:07:37]} Rd8 {[%emt 0:00:53]} 12. d5 {[%emt 0:02:21]} e6 {[%emt 0:01:24]
} 13. Qb3 {[%emt 0:01:39]} exd5 {[%emt 0:04:18]} 14. Nxd5 {[%emt 0:01:05]} Nxd5
{[%emt 0:00:28]} 15. Bxg7 {[%emt 0:00:23]} Kxg7 {[%emt 0:00:12]} 16. cxd5 {
[%emt 0:00:21]} Rxd5 {[%emt 0:05:27]} 17. Bc4 {[%emt 0:00:20]} Rf5 {[%emt 0:00:
00]} 18. Rad1 {[%emt 0:01:55]} Qb4 {[%emt 0:05:48]} 19. Nd4 {[%emt 0:01:34]}
Rf6 {[%emt 0:02:35]} 20. Nb5 {[%emt 0:02:40]} Qxb3 {[%emt 0:02:32]} 21. axb3 {
[%emt 0:00:12]} Rb8 {[%emt 0:04:53]} 22. Bd5 {[%emt 0:02:58]} a6 {[%emt 0:00:
00]} 23. Nc7 {[%emt 0:01:08]} Bf5 {[%emt 0:02:33]} 24. Rc1 {[%emt 0:00:46]} Nb4
{[%emt 0:03:47]} 25. Bxb7 {[%emt 0:03:17]} Rd6 {[%emt 0:04:29]} 26. Rfe1 {
[%emt 0:06:10]} Nd3 {[%emt 0:01:29]} 27. Rcd1 {[%emt 0:05:49]} Nxe1 {[%emt 0:
00:00]} 28. Rxd6 {[%emt 0:00:08]} Rxb7 {[%emt 0:00:35]} 29. Ne8+ {[%emt 0:00:
00]} Kf8 {[%emt 0:00:47]} 30. Nf6 {[%emt 0:00:24]} Rxb3 {[%emt 0:01:11]} 31.
Rxa6 {[%emt 0:00:56]} Rb1 {[%emt 0:00:41]} 32. g4 {[%emt 0:00:39]} Be6 {
[%emt 0:03:10]} 33. f4 {[%emt 0:01:02]} Nd3+ {[%emt 0:01:30]} 34. Kg2 {[%emt 0:
00:00]} Nxf4+ {[%emt 0:00:16]} 35. Kg3 {[%emt 0:00:11]} Nd5 {[%emt 0:02:15]}
36. Nxh7+ {[%emt 0:00:24]} Kg7 {[%emt 0:01:11]} 37. Ng5 {[%emt 0:00:11]} Kf6 {
[%emt 0:01:19]} 38. h4 {[%emt 0:01:41]} Rg1+ {[%emt 0:06:01]} 39. Kf3 {[%emt 0:
00:00]} Ke5 {[%emt 0:00:59]} 40. Ra4 {[%emt 0:01:34]} Nc3 {[%emt 0:05:05]} 41.
Ra3 {[%emt 0:46:35]} Bd5+ {[%emt 0:31:34]} 42. Kf2 {[%emt 0:00:57]} Rg2+ {
[%emt 0:02:56]} 43. Kf1 {[%emt 0:01:17]} Nb1 {[%emt 0:02:52]} 44. Ra5 {[%emt 0:
00:00]} Nd2+ {[%emt 0:00:13]} 45. Ke1 {[%emt 0:00:10]} Kd4 {[%emt 0:00:12]} 46.
Ra3 {[%emt 0:01:46]} Bb3 {[%emt 0:01:36]} 47. Ra7 {[%emt 0:07:11]} Ke3 {
[%emt 0:00:43]} 48. Re7+ {[%emt 0:00:19]} Be6 {[%emt 0:00:11]} 49. Kd1 {
[%emt 0:00:15]} Kd3 {[%emt 0:00:19]} 50. Ke1 {[%emt 0:00:43]} Re2+ {[%emt 0:00:
00]} 51. Kd1 {[%emt 0:00:12]} Bb3+ {[%emt 0:00:30]} 0-1

[Event "44th Chess Olympiad Open 2022"]
[Site "Chennai"]
[Date "2022.08.07"]
[Round "9.78"]
[White "Mohamed Ali Dima"]
[Black "Adu-Poku, Kwabena"]
[Result "0-1"]
[WhiteElo "1582"]
[BlackElo "1974"]
[Annotator "NA RC"]
[PlyCount "83"]
[EventDate "2022.??.??"]
[TimeControl "60"]

1. d4 {[%emt 0:00:17]} d5 {[%emt 0:00:30]} 2. c4 {[%emt 0:00:07]} c6 {[%emt 0:
00:00]} 3. Nc3 {[%emt 0:00:03]} Nf6 {[%emt 0:00:10]} 4. Nf3 {[%emt 0:01:55]} a6
{[%emt 0:00:31]} 5. e3 {[%emt 0:00:31]} Bf5 {[%emt 0:00:31]} 6. Be2 {[%emt 0:
00:00]} h6 {[%emt 0:01:15]} 7. O-O {[%emt 0:03:21]} e6 {[%emt 0:00:23]} 8. a4 {
[%emt 0:03:58]} Bb4 {[%emt 0:04:56]} 9. Na2 {[%emt 0:02:50]} Be7 {[%emt 0:00:
00]} 10. Bd2 {[%emt 0:02:00]} a5 {[%emt 0:00:41]} 11. b4 {[%emt 0:02:17]} axb4
{[%emt 0:00:38]} 12. Nxb4 {[%emt 0:00:10]} Ne4 {[%emt 0:00:33]} 13. Be1 {
[%emt 0:00:35]} dxc4 {[%emt 0:03:11]} 14. Bxc4 {[%emt 0:00:27]} O-O {[%emt 0:
00:00]} 15. Ne5 {[%emt 0:02:06]} c5 {[%emt 0:01:40]} 16. Nc2 {[%emt 0:02:10]}
Nc6 {[%emt 0:02:23]} 17. Nxc6 {[%emt 0:00:40]} bxc6 {[%emt 0:00:02]} 18. f3 {
[%emt 0:00:15]} Nd6 {[%emt 0:01:57]} 19. Be2 {[%emt 0:00:38]} Bxc2 {[%emt 0:00:
00]} 20. Qxc2 {[%emt 0:00:17]} cxd4 {[%emt 0:00:07]} 21. exd4 {[%emt 0:01:01]}
Nf5 {[%emt 0:00:14]} 22. Qxc6 {[%emt 0:02:06]} Bf6 {[%emt 0:04:06]} 23. Rd1 {
[%emt 0:10:52]} Ne3 {[%emt 0:01:53]} 24. Bf2 {[%emt 0:00:21]} Nxd1 {[%emt 0:00:
00]} 25. Rxd1 {[%emt 0:00:11]} Qa5 {[%emt 0:01:56]} 26. Bb5 {[%emt 0:01:15]}
Rac8 {[%emt 0:02:29]} 27. Qe4 {[%emt 0:00:02]} Rfd8 {[%emt 0:00:29]} 28. h4 {
[%emt 0:04:18]} Rd5 {[%emt 0:03:04]} 29. Bd3 {[%emt 0:00:23]} g6 {[%emt 0:00:
00]} 30. Bc2 {[%emt 0:07:00]} Qc3 {[%emt 0:01:59]} 31. Rc1 {[%emt 0:10:05]} Qd2
{[%emt 0:02:39]} 32. Qe3 {[%emt 0:28:42]} Rxc2 {[%emt 0:00:43]} 33. Rxc2 {
[%emt 0:03:17]} Qxc2 {[%emt 0:00:07]} 34. Qxh6 {[%emt 0:00:54]} Bxd4 {[%emt 0:
00:00]} 35. Bxd4 {[%emt 0:00:11]} Rxd4 {[%emt 0:00:16]} 36. Qg5 {[%emt 0:04:53]
} Rd1+ {[%emt 0:00:56]} 37. Kh2 {[%emt 0:00:46]} Qb1 {[%emt 0:00:08]} 38. Qc5 {
[%emt 0:03:14]} Rh1+ {[%emt 0:00:20]} 39. Kg3 {[%emt 0:00:01]} Qe1+ {[%emt 0:
00:00]} 40. Qf2 {[%emt 0:02:01]} Qxf2+ {[%emt 0:00:08]} 41. Kxf2 {[%emt 0:00:
00]} Rxh4 {[%emt 0:30:12]} 42. g4 {[%emt 0:00:08]} 0-1

[Event "44th Chess Olympiad Open 2022"]
[Site "Chennai"]
[Date "2022.08.07"]
[Round "9.78"]
[White "Ismael, Mohamed Goumaneh"]
[Black "Fomevor, Cephas Clinton"]
[Result "0-1"]
[WhiteElo "1473"]
[BlackElo "1830"]
[Annotator "NA RC"]
[PlyCount "86"]
[EventDate "2022.??.??"]
[TimeControl "60"]

1. d4 {[%emt 0:03:01]} d5 {[%emt 0:00:09]} 2. c4 {[%emt 0:00:02]} e6 {[%emt 0:
00:00]} 3. Nc3 {[%emt 0:00:25]} Nf6 {[%emt 0:00:03]} 4. Nf3 {[%emt 0:00:34]}
Be7 {[%emt 0:00:08]} 5. Bf4 {[%emt 0:00:15]} b6 {[%emt 0:03:08]} 6. e3 {
[%emt 0:00:09]} Bb7 {[%emt 0:00:17]} 7. Rc1 {[%emt 0:01:41]} O-O {[%emt 0:00:
00]} 8. cxd5 {[%emt 0:01:51]} Nxd5 {[%emt 0:02:14]} 9. Nxd5 {[%emt 0:00:03]}
Qxd5 {[%emt 0:02:20]} 10. Rxc7 {[%emt 0:04:04]} Bb4+ {[%emt 0:00:41]} 11. Nd2 {
[%emt 0:00:04]} Na6 {[%emt 0:02:07]} 12. Bxa6 {[%emt 0:01:12]} Bxa6 {[%emt 0:
00:00]} 13. f3 {[%emt 0:04:23]} Qxa2 {[%emt 0:00:39]} 14. d5 {[%emt 0:07:10]}
Qxd5 {[%emt 0:07:23]} 15. e4 {[%emt 0:05:12]} Qd4 {[%emt 0:03:43]} 16. Qb3 {
[%emt 0:11:08]} Rfd8 {[%emt 0:04:43]} 17. Rc2 {[%emt 0:04:36]} Bd3 {[%emt 0:00:
00]} 18. Rc3 {[%emt 0:03:20]} Bxc3 {[%emt 0:05:17]} 19. bxc3 {[%emt 0:00:34]}
Qc5 {[%emt 0:00:44]} 20. Qb4 {[%emt 0:01:41]} Qc6 {[%emt 0:02:48]} 21. Kf2 {
[%emt 0:01:41]} a5 {[%emt 0:02:01]} 22. Qb2 {[%emt 0:01:41]} a4 {[%emt 0:02:16]
} 23. Ra1 {[%emt 0:01:57]} a3 {[%emt 0:09:24]} 24. Qb3 {[%emt 0:03:45]} b5 {
[%emt 0:03:25]} 25. Be3 {[%emt 0:02:04]} Bc4 {[%emt 0:03:12]} 26. Nxc4 {
[%emt 0:00:35]} Qxc4 {[%emt 0:00:39]} 27. Qxc4 {[%emt 0:01:35]} bxc4 {[%emt 0:
00:00]} 28. Ra2 {[%emt 0:00:52]} Rdb8 {[%emt 0:00:24]} 29. Bc1 {[%emt 0:01:50]}
Rb3 {[%emt 0:00:28]} 30. Ke2 {[%emt 0:01:29]} Rxc3 {[%emt 0:00:41]} 31. Kd2 {
[%emt 0:00:30]} Rb3 {[%emt 0:02:03]} 32. Kc2 {[%emt 0:00:12]} Kf8 {[%emt 0:00:
00]} 33. Bd2 {[%emt 0:00:48]} Ke8 {[%emt 0:01:19]} 34. Bc3 {[%emt 0:10:12]} g6
{[%emt 0:02:13]} 35. g4 {[%emt 0:00:57]} Rd8 {[%emt 0:01:40]} 36. f4 {[%emt 0:
00:00]} Rd3 {[%emt 0:00:54]} 37. Bf6 {[%emt 0:00:40]} Rf3 {[%emt 0:00:54]} 38.
Kd1 {[%emt 0:01:44]} Rf1+ {[%emt 0:02:06]} 39. Ke2 {[%emt 0:01:08]} Rh1 {
[%emt 0:00:25]} 40. Rd2 {[%emt 0:01:18]} Rxh2+ {[%emt 0:00:18]} 41. Kd1 {
[%emt 0:30:02]} Rxd2+ {[%emt 0:30:57]} 42. Kxd2 {[%emt 0:00:01]} a2 {[%emt 0:
00:00]} 43. f5 {[%emt 0:02:08]} c3+ {[%emt 0:00:49]} 0-1

[Event "44th Chess Olympiad Open 2022"]
[Site "Chennai"]
[Date "2022.08.07"]
[Round "9.79"]
[White "Coulibaly, Abdoulaye"]
[Black "Nxumalo, Vuyo"]
[Result "0-1"]
[WhiteElo "1936"]
[BlackElo "1493"]
[Annotator "NA"]
[PlyCount "142"]
[EventDate "2022.??.??"]
[TimeControl "60"]

1. e4 {[%emt 0:00:09]} e5 {[%emt 0:01:40]} 2. Bc4 {[%emt 0:00:24]} Be7 {
[%emt 0:03:25]} 3. Qh5 {[%emt 0:01:02]} g6 {[%emt 0:02:48]} 4. Qxe5 {[%emt 0:
00:00]} Nf6 {[%emt 0:00:33]} 5. d3 {[%emt 0:00:43]} O-O {[%emt 0:00:15]} 6. Nc3
{[%emt 0:00:27]} Nc6 {[%emt 0:01:01]} 7. Qg3 {[%emt 0:00:55]} Nd4 {[%emt 0:00:
00]} 8. Bb3 {[%emt 0:00:16]} Re8 {[%emt 0:00:34]} 9. Nge2 {[%emt 0:01:03]} Nh5
{[%emt 0:01:32]} 10. Qe3 {[%emt 0:00:17]} Ne6 {[%emt 0:02:01]} 11. O-O {
[%emt 0:01:57]} d6 {[%emt 0:00:20]} 12. Nd5 {[%emt 0:01:21]} Bg5 {[%emt 0:00:
00]} 13. f4 {[%emt 0:00:34]} Bh6 {[%emt 0:00:32]} 14. Qf2 {[%emt 0:01:21]} c6 {
[%emt 0:00:51]} 15. f5 {[%emt 0:01:25]} Bxc1 {[%emt 0:03:38]} 16. fxe6 {
[%emt 0:01:18]} Bxe6 {[%emt 0:01:47]} 17. Raxc1 {[%emt 0:00:30]} cxd5 {[%emt 0:
00:00]} 18. exd5 {[%emt 0:01:21]} Bf5 {[%emt 0:01:21]} 19. Nd4 {[%emt 0:00:52]}
Ng7 {[%emt 0:01:28]} 20. Rce1 {[%emt 0:02:46]} Qg5 {[%emt 0:05:41]} 21. h4 {
[%emt 0:02:56]} Qg4 {[%emt 0:01:08]} 22. Rxe8+ {[%emt 0:03:18]} Rxe8 {[%emt 0:
00:00]} 23. Qf4 {[%emt 0:00:15]} Qxf4 {[%emt 0:15:23]} 24. Rxf4 {[%emt 0:00:11]
} Nh5 {[%emt 0:00:11]} 25. Rf2 {[%emt 0:01:51]} Bd7 {[%emt 0:00:42]} 26. Kh2 {
[%emt 0:01:20]} Kg7 {[%emt 0:00:38]} 27. Bc4 {[%emt 0:01:56]} a6 {[%emt 0:00:
00]} 28. b4 {[%emt 0:01:11]} Re5 {[%emt 0:00:43]} 29. Nf3 {[%emt 0:01:35]} Re3
{[%emt 0:00:54]} 30. Ng5 {[%emt 0:00:22]} Nf6 {[%emt 0:01:17]} 31. Rf3 {
[%emt 0:03:39]} Re2 {[%emt 0:01:01]} 32. Bb3 {[%emt 0:00:40]} h6 {[%emt 0:00:
00]} 33. Nh3 {[%emt 0:01:11]} Ng4+ {[%emt 0:01:33]} 34. Kg3 {[%emt 0:01:14]}
Ne3 {[%emt 0:05:43]} 35. Nf4 {[%emt 0:00:17]} Nf5+ {[%emt 0:01:09]} 36. Kh2 {
[%emt 0:01:38]} Re5 {[%emt 0:02:20]} 37. g3 {[%emt 0:04:13]} Nd4 {[%emt 0:00:
00]} 38. Rf2 {[%emt 0:00:18]} Bg4 {[%emt 0:00:52]} 39. c3 {[%emt 0:08:15]} Nf5
{[%emt 0:08:15]} 40. Bc2 {[%emt 0:08:12]} Re3 {[%emt 0:01:35]} 41. Rg2 {
[%emt 0:34:39]} Bf3 {[%emt 0:31:19]} 42. Rf2 {[%emt 0:01:22]} Bg4 {[%emt 0:00:
00]} 43. Rg2 {[%emt 0:00:05]} g5 {[%emt 0:00:46]} 44. hxg5 {[%emt 0:01:14]}
hxg5 {[%emt 0:00:33]} 45. Nh3 {[%emt 0:00:03]} f6 {[%emt 0:03:40]} 46. a4 {
[%emt 0:04:08]} Re8 {[%emt 0:01:17]} 47. Nf2 {[%emt 0:01:48]} Bf3 {[%emt 0:00:
00]} 48. g4 {[%emt 0:01:36]} Bxg2 {[%emt 0:00:22]} 49. gxf5 {[%emt 0:00:24]}
Bxd5 {[%emt 0:00:23]} 50. Bd1 {[%emt 0:01:54]} Re1 {[%emt 0:00:52]} 51. c4 {
[%emt 0:00:25]} Bc6 {[%emt 0:02:01]} 52. b5 {[%emt 0:00:27]} Bd7 {[%emt 0:00:
00]} 53. Bf3 {[%emt 0:01:39]} axb5 {[%emt 0:03:34]} 54. axb5 {[%emt 0:04:16]}
b6 {[%emt 0:00:09]} 55. Be4 {[%emt 0:01:11]} Be8 {[%emt 0:01:53]} 56. Bc6 {
[%emt 0:00:51]} Kf7 {[%emt 0:03:06]} 57. Ne4 {[%emt 0:00:59]} Ke7 {[%emt 0:00:
00]} 58. Bxe8 {[%emt 0:02:18]} Kxe8 {[%emt 0:00:07]} 59. Nxf6+ {[%emt 0:00:26]}
Kf7 {[%emt 0:01:10]} 60. Ne4 {[%emt 0:01:42]} g4 {[%emt 0:02:03]} 61. Nxd6+ {
[%emt 0:08:16]} Kf6 {[%emt 0:04:35]} 62. c5 {[%emt 0:00:38]} bxc5 {[%emt 0:00:
00]} 63. b6 {[%emt 0:00:00]} Rb1 {[%emt 0:00:00]} 64. b7 {[%emt 0:00:00]} Ke5 {
[%emt 0:00:00]} 65. Ne4 {[%emt 0:00:00]} Rxb7 {[%emt 0:00:00]} 66. Nxc5 {
[%emt 0:00:00]} Rb4 {[%emt 0:00:00]} 67. Kg3 {[%emt 0:00:00]} Kxf5 {[%emt 0:00:
00]} 68. Ne4 {[%emt 0:00:00]} Rd4 {[%emt 0:00:00]} 69. Nf2 {[%emt 0:00:00]} Rf4
{[%emt 0:00:00]} 70. Kg2 {[%emt 0:00:00]} Rf3 {[%emt 0:00:00]} 71. d4 {[%emt 0:
00:00]} Rf4 {[%emt 0:12:43]} 0-1

[Event "44th Chess Olympiad Open 2022"]
[Site "Chennai"]
[Date "2022.08.07"]
[Round "9.79"]
[White "Mbongeni, Mabuza"]
[Black "Traore, Bakary"]
[Result "0-1"]
[WhiteElo "1669"]
[BlackElo "2181"]
[Annotator "RC"]
[PlyCount "116"]
[EventDate "2022.??.??"]
[TimeControl "60"]

1. d4 {[%emt 0:00:19]} Nf6 {[%emt 0:00:22]} 2. g3 {[%emt 0:00:35]} g6 {[%emt 0:
00:00]} 3. Bg2 {[%emt 0:00:15]} Bg7 {[%emt 0:00:04]} 4. Nc3 {[%emt 0:00:26]} c5
{[%emt 0:00:32]} 5. d5 {[%emt 0:01:14]} d6 {[%emt 0:00:13]} 6. e4 {[%emt 0:00:
00]} a6 {[%emt 0:00:24]} 7. a4 {[%emt 0:00:20]} O-O {[%emt 0:00:52]} 8. Nge2 {
[%emt 0:00:16]} Nbd7 {[%emt 0:00:15]} 9. O-O {[%emt 0:00:33]} Rb8 {[%emt 0:00:
00]} 10. a5 {[%emt 0:03:38]} b5 {[%emt 0:03:55]} 11. axb6 {[%emt 0:00:33]} Nxb6
{[%emt 0:00:24]} 12. b3 {[%emt 0:00:58]} c4 {[%emt 0:01:51]} 13. Nd4 {[%emt 0:
00:00]} Qc7 {[%emt 0:00:24]} 14. b4 {[%emt 0:00:24]} Bb7 {[%emt 0:01:11]} 15.
f4 {[%emt 0:04:19]} Rbe8 {[%emt 0:00:34]} 16. Ra3 {[%emt 0:02:42]} e5 {[%emt 0:
00:00]} 17. fxe5 {[%emt 0:06:19]} Rxe5 {[%emt 0:01:23]} 18. Bf4 {[%emt 0:00:37]
} Ree8 {[%emt 0:00:17]} 19. Qd2 {[%emt 0:06:45]} Nbd7 {[%emt 0:01:32]} 20. Kh1
{[%emt 0:09:06]} Ne5 {[%emt 0:01:41]} 21. b5 {[%emt 0:07:21]} Qc5 {[%emt 0:00:
00]} 22. Raa1 {[%emt 0:00:54]} Ra8 {[%emt 0:05:25]} 23. Be3 {[%emt 0:07:56]}
Qc7 {[%emt 0:02:15]} 24. Nc6 {[%emt 0:00:50]} axb5 {[%emt 0:01:00]} 25. Nxb5 {
[%emt 0:00:25]} Qd7 {[%emt 0:01:21]} 26. Nbd4 {[%emt 0:03:20]} Rxa1 {[%emt 0:
00:00]} 27. Rxa1 {[%emt 0:00:06]} Nxc6 {[%emt 0:00:33]} 28. dxc6 {[%emt 0:00:
00]} Bxc6 {[%emt 0:00:07]} 29. Nxc6 {[%emt 0:08:48]} Qxc6 {[%emt 0:00:03]} 30.
e5 {[%emt 0:05:18]} Ne4 {[%emt 0:00:18]} 31. Re1 {[%emt 0:16:30]} d5 {[%emt 0:
00:00]} 32. Bxe4 {[%emt 0:01:18]} dxe4 {[%emt 0:00:31]} 33. Bd4 {[%emt 0:01:28]
} Rd8 {[%emt 0:02:01]} 34. Qe3 {[%emt 0:00:57]} Qd5 {[%emt 0:01:44]} 35. c3 {
[%emt 0:00:36]} Bxe5 {[%emt 0:01:27]} 36. Qxe4 {[%emt 0:00:14]} Bxd4 {[%emt 0:
00:00]} 37. Qxd5 {[%emt 0:00:38]} Rxd5 {[%emt 0:00:07]} 38. Rd1 {[%emt 0:00:19]
} Kg7 {[%emt 0:00:21]} 39. Kg2 {[%emt 0:01:29]} Kf6 {[%emt 0:00:37]} 40. cxd4 {
[%emt 0:00:08]} Ke6 {[%emt 0:00:18]} 41. Kf3 {[%emt 0:30:53]} Ra5 {[%emt 0:00:
00]} 42. Re1+ {[%emt 0:00:49]} Kd6 {[%emt 0:00:05]} 43. Re3 {[%emt 0:00:00]}
Rf5+ {[%emt 0:00:00]} 44. Ke4 {[%emt 0:00:00]} Rb5 {[%emt 0:00:00]} 45. g4 {
[%emt 0:00:00]} Rb7 {[%emt 0:00:00]} 46. Rh3 {[%emt 0:00:00]} Re7+ {[%emt 0:00:
00]} 47. Kf4 {[%emt 0:00:00]} Kd5 {[%emt 0:00:00]} 48. Rxh7 {[%emt 0:00:00]}
Kxd4 {[%emt 0:00:00]} 49. Rh8 {[%emt 0:00:00]} c3 {[%emt 0:00:00]} 50. Rd8+ {
[%emt 0:00:00]} Kc4 {[%emt 0:00:00]} 51. Rc8+ {[%emt 0:00:00]} Kd3 {[%emt 0:00:
00]} 52. Rd8+ {[%emt 0:00:00]} Ke2 {[%emt 0:00:00]} 53. Rc8 {[%emt 0:00:46]}
Kd2 {[%emt 0:00:00]} 54. Rd8+ {[%emt 0:00:28]} Kc1 {[%emt 0:00:00]} 55. Rc8 {
[%emt 0:01:03]} c2 {[%emt 0:00:00]} 56. Kf3 {[%emt 0:01:39]} Re1 {[%emt 0:00:
00]} 57. h4 {[%emt 0:00:38]} Kb2 {[%emt 0:00:00]} 58. Rb8+ {[%emt 0:00:13]} Ka3
{[%emt 0:00:00]} 0-1

[Event "44th Chess Olympiad Open 2022"]
[Site "Chennai"]
[Date "2022.08.07"]
[Round "9.79"]
[White "Diarra, Sirike"]
[Black "Sihlongonyane, Sikhanyiso"]
[Result "0-1"]
[WhiteElo "1641"]
[BlackElo "1658"]
[Annotator "NA RC"]
[PlyCount "76"]
[EventDate "2022.??.??"]
[TimeControl "60"]

1. e4 {[%emt 0:00:03]} c5 {[%emt 0:00:19]} 2. f4 {[%emt 0:00:31]} Nc6 {[%emt 0:
00:00]} 3. Nf3 {[%emt 0:00:13]} d6 {[%emt 0:00:29]} 4. Bc4 {[%emt 0:00:38]} e6
{[%emt 0:00:50]} 5. O-O {[%emt 0:00:07]} Nf6 {[%emt 0:00:32]} 6. Nc3 {[%emt 0:
00:00]} Be7 {[%emt 0:00:49]} 7. d3 {[%emt 0:00:12]} O-O {[%emt 0:00:21]} 8. a3
{[%emt 0:00:37]} a6 {[%emt 0:00:26]} 9. h3 {[%emt 0:00:16]} d5 {[%emt 0:06:49]}
10. Ba2 {[%emt 0:00:04]} dxe4 {[%emt 0:01:11]} 11. dxe4 {[%emt 0:00:53]} Qxd1 {
[%emt 0:00:14]} 12. Rxd1 {[%emt 0:00:27]} b5 {[%emt 0:02:25]} 13. e5 {[%emt 0:
00:00]} Nd7 {[%emt 0:02:36]} 14. Ne4 {[%emt 0:00:35]} Rd8 {[%emt 0:01:32]} 15.
Be3 {[%emt 0:00:30]} c4 {[%emt 0:00:52]} 16. c3 {[%emt 0:01:03]} Bb7 {[%emt 0:
00:00]} 17. Nd6 {[%emt 0:00:03]} Na5 {[%emt 0:00:45]} 18. Nh2 {[%emt 0:02:59]}
Bd5 {[%emt 0:00:54]} 19. Nf5 {[%emt 0:00:32]} Bf8 {[%emt 0:05:52]} 20. Ng3 {
[%emt 0:01:11]} Nc5 {[%emt 0:02:03]} 21. Bxc5 {[%emt 0:05:56]} Bxc5+ {[%emt 0:
00:00]} 22. Kf1 {[%emt 0:03:22]} Kf8 {[%emt 0:02:40]} 23. Ng4 {[%emt 0:05:51]}
Nb3 {[%emt 0:00:23]} 24. Rab1 {[%emt 0:00:37]} a5 {[%emt 0:01:10]} 25. Bxb3 {
[%emt 0:00:33]} cxb3 {[%emt 0:00:08]} 26. Ne2 {[%emt 0:01:03]} b4 {[%emt 0:00:
00]} 27. cxb4 {[%emt 0:00:40]} axb4 {[%emt 0:00:13]} 28. axb4 {[%emt 0:01:11]}
Bxb4 {[%emt 0:00:13]} 29. Ra1 {[%emt 0:03:25]} Ra2 {[%emt 0:02:00]} 30. Ne3 {
[%emt 0:01:19]} Rxb2 {[%emt 0:01:42]} 31. Nxd5 {[%emt 0:04:14]} Rxd5 {[%emt 0:
00:00]} 32. Ra8+ {[%emt 0:02:20]} Ke7 {[%emt 0:02:19]} 33. Ra7+ {[%emt 0:00:17]
} Ke8 {[%emt 0:00:31]} 34. Ra8+ {[%emt 0:00:22]} Kd7 {[%emt 0:01:39]} 35. Ra7+
{[%emt 0:02:52]} Kc6 {[%emt 0:01:42]} 36. Rda1 {[%emt 0:00:35]} Rdd2 {[%emt 0:
00:00]} 37. Rc1+ {[%emt 0:03:53]} Rbc2 {[%emt 0:01:09]} 38. Raa1 {[%emt 0:00:
00]} Rxe2 {[%emt 0:00:48]} 0-1